[Event "GCT 11th Sinquefield Cup 2024"]
[Site "Saint Louis"]
[Date "2024.08.28"]
[Round "9.3"]
[White "Caruana, Fabiano"]
[Black "Giri, Anish"]
[Result "1-0"]
[ECO "A14"]
[WhiteElo "2793"]
[BlackElo "2746"]
[Annotator "TA"]
[PlyCount "93"]
[EventDate "2024.08.09"]
[EventType "tourn"]
[EventCountry "USA"]
[SourceTitle "playchess.com"]
[Source "ChessBase"]
[SourceQuality "1"]
[TimeControl "7200+30"]

{[%evp 33,93,17,26,17,79,70,94,101,113,99,93,62,67,75,59,67,70,81,63,58,89,75,75,75,75,76,320,299,294,303,330,327,475,356,528,502,502,474,255,500,481,432,388,370,550,540,503,410,692,646,3363,2513,918,4133,3584,1882,4133,1855,2172,1788,1352,1175]} 1. c4 {[%emt 0:00:03]} Nf6 {[%emt 0:00:12]} 2. Nf3 {[%emt 0:00:06]} e6 {[%emt 0:00:18]} 3. g3 {[%emt 0:00:06]} d5 {[%emt 0:00:04]} 4. Bg2 {[%emt 0:00:05]} Be7 {[%emt 0:00:03]} 5. O-O {[%emt 0:00:15]} O-O {[%emt 0:00:06]} 6. d3 {[%emt 0:00:11]} c5 {[%emt 0:01:31]} 7. Ne5 {[%emt 0:00:20] A14: English Opening: 1...e6 with b3 by White.} Nbd7 {[%emt 0:02:30]} 8. Nxd7 {[%emt 0:00:26]} Bxd7 {[%emt 0:00:05]} 9. e4 {[%emt 0:00:09]} dxe4 {[%emt 0:02:20]} 10. dxe4 {[%emt 0:00:10]} Bc6 {[%emt 0:00:04]} 11. Qe2 {[%emt 0:00:16]} Nd7 {[%emt 0:02:52]} 12. f4 {[%emt 0:00:12]} a6 $146 {[%emt 0:02:20]} ({Predecessor:} 12... Qc7 13. Nc3 Rad8 14. Be3 Bf6 15. e5 Bxg2 16. Qxg2 Be7 17. Qe4 a6 18. Rae1 Rde8 {1-0 Bernadskiy,V (2530)-Gavrilescu,D (2526) Rubinstein Memorial 59th 2023 (3)}) 13. a4 {[%emt 0:10:25]} Qc7 {[%emt 0:11:08]} 14. Nc3 {[%emt 0:00:37]} Bf6 {[%emt 0:01:56]} 15. e5 {[%emt 0:10:15]} Bxg2 {[%emt 0:00:15]} 16. Kxg2 {[%emt 0:00:18]} Be7 {[%emt 0:00:13]} 17. Bd2 {[%emt 0:18:58]} Rae8 {[%emt 0:09:39]} 18. Ne4 {[%emt 0:12:16]} Qc6 {[%emt 0:00:36]} (18... Nb8 $11) 19. Qf3 $16 {[%emt 0:04:38]} f5 {[%emt 0:19:33]} 20. exf6 {[%emt 0:00:50]} gxf6 {[%emt 0:00:36]} 21. Bc3 {[%emt 0:33:26]} f5 {[%emt 0:01:53]} 22. Rfd1 {[%emt 0:03:19]} Nb6 {[%emt 0:06:48]} (22... fxe4 23. Qg4+) 23. Nd2 {[%emt 0:02:21]} Qxf3+ {[%emt 0:02:13]} 24. Kxf3 {[%emt 0:00:12]} Rd8 {[%emt 0:07:22]} 25. Ke2 {[%emt 0:00:04]} Rd6 {[%emt 0:13:24]} 26. a5 {[%emt 0:04:47]} Nd7 {[%emt 0:04:04]} 27. Ne4 {[%emt 0:09:06]} Rxd1 {[%emt 0:02:54]} (27... fxe4 28. Rxd6 Bxd6 29. Rd1 $18) 28. Rxd1 {[%emt 0:00:03]} Rd8 {[%emt 0:02:29]} 29. Nd6 {[%emt 0:02:49]} Nf6 $2 {[%emt 0:12:49]} (29... Bxd6 $16 {was worth a try.} 30. Rxd6 Kf7) 30. Bxf6 $1 $18 {[%emt 0:11:10]} (30. Nxb7 Rxd1 31. Kxd1 Ne4 $19) 30... Bxf6 {[%emt 0:00:14]} 31. Nxb7 {[%emt 0:00:02]} Rxd1 {[%emt 0:12:18]} 32. Kxd1 {[%emt 0:00:03]} Be7 {[%emt 0:01:22]} (32... Bxb2 $142 33. Nxc5 Bc3 34. Nxe6 Bxa5) 33. b4 {[%emt 0:00:04]} cxb4 {[%emt 0:00:04]} 34. c5 {[%emt 0:00:02]} Kf7 {[%emt 0:00:11]} 35. Kc2 {[%emt 0:01:10]} Ke8 {[%emt 0:00:07]} (35... Kf8 $142 36. Kb3 Ke8) 36. c6 $1 $18 {[%emt 0:00:27]} Bf8 {[%emt 0:04:44]} 37. Kb3 {[%emt 0:00:06]} Be7 {[%emt 0:00:06]} 38. Kc4 {[%emt 0:04:26]} h5 {[%emt 0:03:13]} (38... Bf8 {might work better.} 39. Kd4 (39. Nc5 $2 Bxc5 40. h3 Kd8 $19) 39... h6) 39. Kd3 $18 {[%emt 0:00:07]} (39. Nc5 $2 Bxc5 40. Kxc5 b3 $19) 39... Bf8 {[%emt 0:02:18]} 40. Kd4 {[%emt 0:00:03]} Bg7+ {[%emt 0:02:39]} (40... Be7 $142 41. Ke5 Bd8 42. Kxe6 Bc7) 41. Kc5 $18 {[%emt 0:02:22]} Bf8+ {[%emt 0:00:08]} 42. Kb6 {[%emt 0:01:24]} b3 {[%emt 0:00:13] [#]} 43. c7 $1 {[%emt 0:00:04]} (43. Kxa6 b2 44. Ka7 b1=Q (44... b1=B $2 {is the wrong capture.} 45. c7 $18) 45. Kb8 Bd6+ 46. Ka7 Bc7 47. Ka6 Qd3+ 48. Ka7 Qb5 49. h4 Qxc6 (49... Bxa5 50. Nd6+ Kd8 51. Nxb5 $11) 50. g4 Kd7 (50... Bxf4 51. g5 Kd7 52. Nd6 Bxd6 53. g6 Bc5+ 54. Kb8 Qc8#) (50... fxg4 51. f5 Kd7 52. fxe6+ Kc8 53. Nd6+ Bxd6 54. a6 Bc5#) 51. g5 Kc8 (51... Bxf4 52. Nd6 Bxd6 53. g6 Bc5+ 54. Kb8 Qc8#) (51... Bxf4 52. Nd6 Be3+ 53. Kb8 Qc7+ 54. Ka8 Qa7#)) 43... Kd7 {[%emt 0:00:03] [#]} 44. Nc5+ $1 {[%emt 0:00:02]} Kc8 {[%emt 0:00:18]} 45. Nxb3 {[%emt 0:00:05]} (45. Nxa6 {gets mated.} b2 46. Kb5 b1=Q+ (46... b1=B $2 47. Nc5 $19) 47. Kc4 Qc2+ (47... Qb7 48. Kd4 Qb3 49. h3 Bg7+ 50. Kc5 Qc3+ 51. Kb6 Bf8 52. h4 Qb3+ 53. Nb4 Qxb4+ 54. Kc6 Qc5#) 48. Kd4 Bg7+ (48... Qxh2 49. Nb8 Qd2+ 50. Kc4 Qe2+ 51. Kc3 Bg7+ 52. Kb4 Qe4+ 53. Ka3 Qd3+ 54. Ka4 Bf8 55. a6 Qc4+ 56. Ka5 Qb4#) 49. Ke3 Qd1 (49... Qxh2 50. Nb4 Bc3 51. Nc6 Kxc7 52. Na7 Be1 53. Nb5+ Kd7 54. Kd4 Qb2+ 55. Kc5 Bxa5 56. Kc4 Qb4+ 57. Kd3 Qe4#) 50. Kf2 Bd4+ 51. Kg2 Qg1+ 52. Kh3 Bf6 53. Nb8 Qf1#) 45... Bd6 {[%emt 0:00:09]} 46. Nd4 {[%emt 0:01:10]} Bxc7+ {[%emt 0:00:05]} 47. Kxa6 {[%emt 0:00:02]} 1-0

[Event "GCT 11th Sinquefield Cup 2024"]
[Site "Saint Louis"]
[Date "2024.08.28"]
[Round "9.4"]
[White "Firouzja, Alireza"]
[Black "Praggnanandhaa R"]
[Result "1/2-1/2"]
[ECO "C12"]
[WhiteElo "2751"]
[BlackElo "2749"]
[Annotator "TA"]
[PlyCount "93"]
[EventDate "2024.08.09"]
[EventType "tourn"]
[EventCountry "USA"]
[SourceTitle "playchess.com"]
[Source "ChessBase"]
[SourceQuality "1"]
[TimeControl "7200+30"]

{[%evp 10,93,6,-7,-10,-4,-3,-10,6,0,-7,-8,0,-13,0,0,-8,-4,0,0,0,-7,-9,-6,0,0,0,0,0,-14,-8,0,0,0,0,0,0,-32,-30,-37,-2,-25,-10,-4,-5,-6,-6,-13,-6,-16,-12,-11,-6,-5,0,0,0,0,0,0,0,0,0,0,0,0,0,0,0,0,0,0,0,0,0,0,0,0,0,0,0,0,0,0,0,0]} 1. e4 {[%emt 0:00:02]} e6 {[%emt 0:01:32]} 2. d4 {[%emt 0:00:23]} d5 {[%emt 0:00:06]} 3. Nc3 {[%emt 0:06:19]} Nf6 {[%emt 0:00:34]} 4. Bg5 {[%emt 0:00:05]} Bb4 {[%emt 0:01:12]} 5. exd5 {[%emt 0:03:40]} Qxd5 {[%emt 0:02:33]} 6. Nf3 {[%emt 0:06:50]} (6. Bxf6 {simplifies} gxf6 7. Qd3 Bxc3+ 8. bxc3 Nd7 9. a4) 6... Ne4 {[%emt 0:04:37]} 7. Bd2 {[%emt 0:00:33]} Bxc3 {[%emt 0:00:29]} 8. bxc3 {[%emt 0:12:04]} Nxd2 {[%emt 0:10:31]} 9. Qxd2 {[%emt 0:00:00]} b6 {[%emt 0:01:12]} 10. Bd3 {[%emt 0:00:00]} Bb7 {[%emt 0:03:13]} 11. O-O {[%emt 0:00:00]} Nd7 {[%emt 0:01:46]} 12. Rfe1 {[%emt 0:00:00]} Qd6 {[%emt 0:01:18]} 13. Qe3 {[%emt 0:00:00]} Bxf3 {[%emt 0:10:55]} 14. Qxf3 {[%emt 0:00:00]} O-O {[%emt 0:00:07]} 15. a4 {[%emt 0:00:00]} c5 {[%emt 0:13:11]} 16. a5 {[%emt 0:06:16]} Rad8 {[%emt 0:03:32]} 17. axb6 {[%emt 0:00:27]} axb6 {[%emt 0:00:02]} 18. Qg3 {[%emt 0:03:44]} Nf6 {[%emt 0:07:01]} 19. Reb1 {[%emt 0:04:44]} cxd4 {[%emt 0:04:00]} 20. Qxd6 {[%emt 0:00:28]} Rxd6 {[%emt 0:00:05]} 21. cxd4 {[%emt 0:00:04]} Rxd4 {[%emt 0:00:34]} 22. Rxb6 {[%emt 0:00:09]} Nd7 {[%emt 0:00:05]} 23. Rc6 {[%emt 0:02:46][%cal Bb6c6,Bc6c3,Bc3d3][%mdl 32]} Ne5 {[%emt 0:02:16][%csl LRc6,LRd3]} 24. Rc3 {[%emt 0:00:14]} g6 {[%emt 0:00:30]} 25. Ra5 {[%emt 0:07:29] [#]} Rb8 $1 {[%emt 0:01:16][%cal Od4d3] And now ...Rxd3! would win.} 26. Bf1 {[%emt 0:08:25] The position is equal.} (26. Rxe5 $2 {is the wrong capture.} Rxd3 27. h4 Rxc3 $19) 26... Ng4 {[%emt 0:03:27] aiming for ...Rb1.} 27. h3 {[%emt 0:02:48]} Nf6 {[%emt 0:00:24] White must now prevent ...Rb1.} 28. Rd3 {[%emt 0:02:25]} Re4 {[%emt 0:05:02]} 29. Rd1 {[%emt 0:01:27] Against Rb1} Reb4 {[%emt 0:01:57]} 30. g3 {[%emt 0:02:33]} Rc8 {[%emt 0:03:41]} 31. Bd3 {[%emt 0:00:31]} h5 {[%emt 0:01:01]} 32. h4 {[%emt 0:00:23]} Kg7 {[%emt 0:00:25]} 33. Kg2 {[%emt 0:04:12]} Rc7 {[%emt 0:00:43]} 34. Rda1 {[%emt 0:00:34]} Ng4 {[%emt 0:01:09]} 35. Ra7 {[%emt 0:01:12]} Rxa7 {[%emt 0:00:48]} 36. Rxa7 $11 {[%emt 0:00:20][%mdl 4096] Endgame. KRB-KRN} Kf6 {[%emt 0:00:14]} 37. Rc7 {[%emt 0:02:55]} Rb1 {[%emt 0:02:39]} 38. Be2 {[%emt 0:01:35]} Ne5 {[%emt 0:00:10]} 39. Bf3 {[%emt 0:03:02]} Re1 {[%emt 0:01:31]} 40. Bb7 {[%emt 0:04:53]} Rd1 {[%emt 0:02:38]} 41. Ba6 {[%emt 0:00:22]} Kg7 {[%emt 0:06:00]} 42. Rc5 {[%emt 0:03:41]} Re1 {[%emt 0:00:29]} 43. Rc7 {[%emt 0:00:50]} Rd1 {[%emt 0:04:20]} 44. Rc5 {[%emt 0:00:24]} Kf6 {[%emt 0:00:08]} 45. Rc7 {[%emt 0:00:26]} Rd2 {[%emt 0:01:37]} 46. Kf1 {[%emt 0:00:35]} Rd1+ {[%emt 0:01:56]} (46... Ng4 $5) 47. Kg2 {[%emt 0:01:29] Weighted Error Value: White=0.03 (flawless) /Black=0.03 (flawless) .  Inaccurate:     	White=1     	Black=1      OK:         	White=21    	Black=11     Best:        	White=4     	---} 1/2-1/2

[Event "GCT 11th Sinquefield Cup 2024"]
[Site "Saint Louis"]
[Date "2024.08.28"]
[Round "9.5"]
[White "Vachier-Lagrave, Maxime"]
[Black "Ding, Liren"]
[Result "1-0"]
[ECO "C77"]
[WhiteElo "2721"]
[BlackElo "2745"]
[Annotator "TA"]
[PlyCount "73"]
[EventDate "2024.08.09"]
[EventType "tourn"]
[EventCountry "USA"]
[SourceTitle "playchess.com"]
[Source "ChessBase"]
[SourceQuality "1"]
[TimeControl "7200+30"]

{[%evp 13,73,20,25,5,16,12,30,4,14,12,16,0,2,0,0,0,8,0,12,0,0,-10,0,0,35,29,48,44,125,71,85,68,52,77,73,72,71,57,58,49,104,104,114,109,175,162,183,215,400,300,306,313,552,518,572,573,621,636,633,590,1014,1010]} 1. e4 {[%emt 0:00:02]} e5 {[%emt 0:00:05]} 2. Nf3 {[%emt 0:00:02]} Nc6 {[%emt 0:00:04]} 3. Bb5 {[%emt 0:00:03]} a6 {[%emt 0:00:06]} 4. Ba4 {[%emt 0:00:02]} Nf6 {[%emt 0:00:06]} 5. d3 {[%emt 0:00:02]} b5 {[%emt 0:00:49]} 6. Bb3 {[%emt 0:00:04]} Bc5 {[%emt 0:00:04]} 7. c3 {[%emt 0:00:04]} d6 {[%emt 0:00:12]} 8. Bg5 {[%emt 0:00:07][%cal Bc1g5,Bg5h4,Bh4g3][%mdl 32]} h6 {[%emt 0:02:36]} 9. Bh4 {[%emt 0:00:09]} Ba7 {[%emt 0:07:13]} 10. O-O {[%emt 0:02:05] White has an edge.} Na5 {[%emt 0:00:05]} 11. Bc2 {[%emt 0:00:49]} c5 {[%emt 0:00:03]} 12. Nbd2 {[%emt 0:01:28]} g5 {[%emt 0:03:27]} 13. Bg3 {[%emt 0:00:35]} Nh5 {[%emt 0:00:09]} 14. h3 {[%emt 0:00:44][%cal Bh2h3,Bh3h4][%mdl 32]} Rb8 {[%emt 0:11:05]} 15. Kh1 {[%emt 0:01:22]} Rb7 {[%emt 0:17:39]} 16. Nh2 {[%emt 0:12:54][%cal Bf3h2,Bh2g4,Bg4e3][%mdl 32]} Nf4 {[%emt 0:04:14]} 17. Ng4 {[%emt 0:00:34]} h5 {[%emt 0:22:18]} 18. Ne3 {[%emt 0:00:22]} g4 {[%emt 0:00:05]} 19. h4 {[%emt 0:13:04]} Ng6 {[%emt 0:05:05]} 20. Qe1 $1 {[%emt 0:01:13]} Kf8 {[%emt 0:16:53]} ({Black should try} 20... Nxh4 $14 21. f4 Ng6) 21. f3 {[%emt 0:04:09]} (21. f4 $142) 21... c4 {[%emt 0:00:09]} 22. dxc4 {[%emt 0:08:07]} Bxe3 {[%emt 0:00:45]} 23. Qxe3 {[%emt 0:00:08] Threatens to win with cxb5.} Nxc4 {[%emt 0:00:02]} 24. Nxc4 {[%emt 0:00:34]} bxc4 {[%emt 0:00:04] [#]} 25. b4 {[%emt 0:03:44]} (25. fxg4 hxg4 26. b3 Nxh4 $17) 25... gxf3 {[%emt 0:01:25]} 26. Qxf3 {[%emt 0:07:29]} ({But not} 26. Rxf3 Nxh4 27. Bxh4 Qxh4+ 28. Kg1 Be6 $11) 26... Bg4 {[%emt 0:05:24] [#]} ({Black should play} 26... Nxh4 $14 27. Qf6 Qxf6 28. Rxf6 Ng6) 27. Qf2 $1 $16 {[%emt 0:02:02]} Kg7 {[%emt 0:00:25]} 28. a4 {[%emt 0:01:27][%cal Ba2a4,Ba4a5][%mdl 32]} Re8 {[%emt 0:01:34]} (28... Rf8 $16 29. Kg1 f6) 29. Bd1 $18 {[%emt 0:06:13]} Rd7 {[%emt 0:06:28]} 30. a5 {[%emt 0:04:27]} Nf4 $2 {[%emt 0:01:26]} (30... Bxd1 31. Raxd1 Rg8) 31. Ba4 {[%emt 0:03:54]} Nd3 {[%emt 0:00:11]} 32. Qb6 {[%emt 0:04:27]} Re6 $2 {[%emt 0:02:02]} (32... Qxb6 {keeps fighting.} 33. axb6 Rb8 34. Bxd7 Bxd7 35. Rxa6 Bg4) 33. Bxd7 {[%emt 0:00:40] White is clearly winning.} Qxd7 {[%emt 0:00:04]} 34. Qxa6 {[%emt 0:00:07]} Be2 {[%emt 0:00:09]} 35. Rf5 {[%emt 0:02:15]} Rg6 {[%emt 0:06:32]} 36. Kh2 {[%emt 0:00:29]} d5 {[%emt 0:00:21]} 37. Rg5 {[%emt 0:01:10] Weighted Error Value: White=0.08 (flawless) /Black=0.38.  Mistake:       	White=1     	Black=5      Inaccurate:     	---       	Black=1      OK:         	White=12    	Black=11     Best:        	White=3     	---        Strong:       	White=2     	---} (37. Bxe5+ Nxe5 38. Qa8 Qc7 $19) 1-0